[Event "Late-Titled-Tuesday-Blitz-November-28-2023"]
[Site "Chess.com"]
[Date "2023.11.28"]
[Round "11"]
[White "Aradhya2000"]
[Black "FaustinoOro"]
[Result "1/2-1/2"]
[WhiteElo "2737"]
[BlackElo "2830"]
[TimeControl "180+1"]
[EndTime "16:03:22 PST"]
[Termination "Game drawn by repetition"]

1. d4 {[%clk 0:03:00.9]} 1... Nf6 {[%clk 0:02:59.9]} 2. c4 {[%clk 0:03:01.5]}
2... e6 {[%clk 0:03:00.1]} 3. Nf3 {[%clk 0:03:01.9]} 3... d5 {[%clk 0:02:59.8]}
4. Nc3 {[%clk 0:03:01.8]} 4... Bb4 {[%clk 0:02:57.7]} 5. Bg5 {[%clk 0:03:01.6]}
5... O-O {[%clk 0:02:56.1]} 6. e3 {[%clk 0:03:01.3]} 6... h6 {[%clk 0:02:55.4]}
7. Bh4 {[%clk 0:02:59.4]} 7... c6 {[%clk 0:02:54.5]} 8. Bd3 {[%clk 0:02:57.4]}
8... Nbd7 {[%clk 0:02:53.9]} 9. O-O {[%clk 0:02:56.7]} 9... Be7 {[%clk
0:02:53.5]} 10. Qc2 {[%clk 0:02:47.6]} 10... b6 {[%clk 0:02:41.6]} 11. h3 {[%clk
0:02:39.2]} 11... Bb7 {[%clk 0:02:39.7]} 12. Bg3 {[%clk 0:02:37.7]} 12... c5
{[%clk 0:02:34.7]} 13. cxd5 {[%clk 0:02:37.3]} 13... Nxd5 {[%clk 0:02:34.3]} 14.
Nxd5 {[%clk 0:02:36.7]} 14... Bxd5 {[%clk 0:02:35.2]} 15. e4 {[%clk 0:02:29.8]}
15... Bb7 {[%clk 0:02:35]} 16. d5 {[%clk 0:02:30.3]} 16... exd5 {[%clk
0:02:31.2]} 17. exd5 {[%clk 0:02:31.2]} 17... Bxd5 {[%clk 0:02:05.5]} 18. Rfd1
{[%clk 0:02:28.3]} 18... Bc6 {[%clk 0:01:44.1]} 19. Bf5 {[%clk 0:02:14.4]} 19...
Qe8 {[%clk 0:01:39.8]} 20. Re1 {[%clk 0:02:14.3]} 20... Nf6 {[%clk 0:01:10.6]}
21. Bd6 {[%clk 0:01:56.5]} 21... Nd5 {[%clk 0:01:10.9]} 22. Rad1 {[%clk
0:01:54]} 22... Bxd6 {[%clk 0:01:06.1]} 23. Rxe8 {[%clk 0:01:54]} 23... Rfxe8
{[%clk 0:01:07]} 24. a3 {[%clk 0:01:49.8]} 24... Rad8 {[%clk 0:01:01.7]} 25. Nd4
{[%clk 0:01:48.1]} 25... Bb7 {[%clk 0:00:56.4]} 26. Nb5 {[%clk 0:01:48.2]} 26...
Bb8 {[%clk 0:00:56.8]} 27. Be4 {[%clk 0:01:32.1]} 27... a6 {[%clk 0:00:49.1]}
28. Bxd5 {[%clk 0:01:23.1]} 28... Bxd5 {[%clk 0:00:50]} 29. Nc3 {[%clk
0:01:22.6]} 29... Bc6 {[%clk 0:00:49.6]} 30. f3 {[%clk 0:01:19.4]} 30... Be5
{[%clk 0:00:49.5]} 31. Rxd8 {[%clk 0:01:18]} 31... Rxd8 {[%clk 0:00:50.4]} 32.
Qe2 {[%clk 0:01:17.6]} 32... Bd4+ {[%clk 0:00:49.6]} 33. Kh2 {[%clk 0:01:17.1]}
33... b5 {[%clk 0:00:48.9]} 34. Qe7 {[%clk 0:01:13.1]} 34... Re8 {[%clk
0:00:37.5]} 35. Qa7 {[%clk 0:01:13]} 35... Re1 {[%clk 0:00:28.6]} 36. Kg3 {[%clk
0:00:54.7]} 36... Be5+ {[%clk 0:00:15.4]} 37. Kf2 {[%clk 0:00:54.5]} 37... Rc1
{[%clk 0:00:13.7]} 38. Qxc5 {[%clk 0:00:47.6]} 38... Rc2+ {[%clk 0:00:12.1]} 39.
Kf1 {[%clk 0:00:25.9]} 39... Bxc3 {[%clk 0:00:07.5]} 40. Qxc6 {[%clk 0:00:23.8]}
40... Rc1+ {[%clk 0:00:07.2]} 41. Ke2 {[%clk 0:00:24.1]} 41... Bxb2 {[%clk
0:00:06.9]} 42. Qxa6 {[%clk 0:00:23.7]} 42... Rc5 {[%clk 0:00:04.5]} 43. Kd2
{[%clk 0:00:18.5]} 43... Bf6 {[%clk 0:00:04.3]} 44. g3 {[%clk 0:00:17.6]} 44...
h5 {[%clk 0:00:04.7]} 45. h4 {[%clk 0:00:17.6]} 45... Rd5+ {[%clk 0:00:04.8]}
46. Ke2 {[%clk 0:00:17.6]} 46... Kh7 {[%clk 0:00:05]} 47. Qa5 {[%clk 0:00:16.8]}
47... g6 {[%clk 0:00:04.3]} 48. a4 {[%clk 0:00:16.5]} 48... Re5+ {[%clk
0:00:04]} 49. Kf1 {[%clk 0:00:16.6]} 49... bxa4 {[%clk 0:00:04.9]} 50. Qxa4
{[%clk 0:00:16.8]} 50... Kg7 {[%clk 0:00:05.6]} 51. Kg2 {[%clk 0:00:17]} 51...
Re6 {[%clk 0:00:06.2]} 52. Qc4 {[%clk 0:00:16.7]} 52... Rd6 {[%clk 0:00:06.4]}
53. Kh3 {[%clk 0:00:16.4]} 53... Rd4 {[%clk 0:00:06.6]} 54. Qe2 {[%clk
0:00:16.5]} 54... Rd5 {[%clk 0:00:06.8]} 55. g4 {[%clk 0:00:16.8]} 55... hxg4+
{[%clk 0:00:07]} 56. fxg4 {[%clk 0:00:17.7]} 56... Re5 {[%clk 0:00:06.9]} 57.
Qd3 {[%clk 0:00:16.8]} 57... Re6 {[%clk 0:00:06.5]} 58. g5 {[%clk 0:00:16.8]}
58... Be5 {[%clk 0:00:07.1]} 59. Qd5 {[%clk 0:00:16.2]} 59... Bd6 {[%clk
0:00:06.8]} 60. Kg4 {[%clk 0:00:16.3]} 60... Be7 {[%clk 0:00:06.5]} 61. h5
{[%clk 0:00:16.4]} 61... gxh5+ {[%clk 0:00:05.8]} 62. Kxh5 {[%clk 0:00:17]}
62... Bd6 {[%clk 0:00:06.4]} 63. Qd4+ {[%clk 0:00:14.7]} 63... Kg8 {[%clk
0:00:06.4]} 64. Qc4 {[%clk 0:00:12.5]} 64... Be7 {[%clk 0:00:05.9]} 65. Qc8+
{[%clk 0:00:10.9]} 65... Kg7 {[%clk 0:00:05.9]} 66. Qc3+ {[%clk 0:00:11.1]}
66... Kg8 {[%clk 0:00:06.5]} 67. Qc8+ {[%clk 0:00:11]} 67... Kg7 {[%clk
0:00:07]} 68. Qc3+ {[%clk 0:00:11.1]} 68... Kg8 {[%clk 0:00:07.4]} 69. Qc8+
{[%clk 0:00:10.2]} 1/2-1/2

[Event "Late-Titled-Tuesday-Blitz-November-28-2023"]
[Site "Chess.com"]
[Date "2023.11.28"]
[Round "11"]
[White "koncheto"]
[Black "Actuary44"]
[Result "1/2-1/2"]
[WhiteElo "2527"]
[BlackElo "2485"]
[TimeControl "180+1"]
[EndTime "16:03:24 PST"]
[Termination "Game drawn by stalemate"]

1. e4 {[%clk 0:03:00.9]} 1... b6 {[%clk 0:02:59.8]} 2. d4 {[%clk 0:03:00.8]}
2... Bb7 {[%clk 0:03:00.5]} 3. Bd3 {[%clk 0:03:00.1]} 3... e6 {[%clk 0:03:01.1]}
4. f4 {[%clk 0:02:59.9]} 4... Nf6 {[%clk 0:03:01.5]} 5. Qe2 {[%clk 0:02:59.6]}
5... d5 {[%clk 0:03:01.7]} 6. e5 {[%clk 0:02:59.5]} 6... Ne4 {[%clk 0:03:00.7]}
7. Nd2 {[%clk 0:02:58.3]} 7... Qh4+ {[%clk 0:02:57.4]} 8. Kf1 {[%clk 0:02:24.3]}
8... Ng3+ {[%clk 0:02:49.2]} 9. hxg3 {[%clk 0:02:24.3]} 9... Qxh1 {[%clk
0:02:50.1]} 10. g4 {[%clk 0:02:09.6]} 10... c5 {[%clk 0:02:47.6]} 11. c3 {[%clk
0:02:07.8]} 11... Nc6 {[%clk 0:02:46.7]} 12. Nf3 {[%clk 0:02:07.7]} 12... Be7
{[%clk 0:02:12.3]} 13. Be3 {[%clk 0:01:28.6]} 13... cxd4 {[%clk 0:01:47.9]} 14.
cxd4 {[%clk 0:01:26.2]} 14... O-O {[%clk 0:01:47.7]} 15. Kf2 {[%clk 0:01:16.9]}
15... Nb4 {[%clk 0:01:35.4]} 16. Rd1 {[%clk 0:01:02.9]} 16... Bh4+ {[%clk
0:01:27.2]} 17. g3 {[%clk 0:00:43.7]} 17... Be7 {[%clk 0:01:25.5]} 18. Bb1
{[%clk 0:00:27.4]} 18... Rac8 {[%clk 0:01:14.3]} 19. a3 {[%clk 0:00:25.8]} 19...
Ba6 {[%clk 0:01:07.9]} 20. Qd2 {[%clk 0:00:20]} 20... Nc6 {[%clk 0:01:07.3]} 21.
Ne2 {[%clk 0:00:17.2]} 21... Qh3 {[%clk 0:01:07.1]} 22. g5 {[%clk 0:00:11.6]}
22... Na5 {[%clk 0:00:55.3]} 23. Rg1 {[%clk 0:00:06.8]} 23... Qg4 {[%clk
0:00:43.3]} 24. Rh1 {[%clk 0:00:06.2]} 24... g6 {[%clk 0:00:42.9]} 25. Rh4
{[%clk 0:00:05.9]} 25... Nc4 {[%clk 0:00:18.7]} 26. Qe1 {[%clk 0:00:06.3]} 26...
Qxh4 {[%clk 0:00:11.1]} 27. Nxh4 {[%clk 0:00:05.2]} 27... Nxb2 {[%clk 0:00:12]}
28. Nf3 {[%clk 0:00:04.2]} 28... Bxa3 {[%clk 0:00:11.1]} 29. Qh1 {[%clk
0:00:02.3]} 29... Rc7 {[%clk 0:00:01.8]} 30. g4 {[%clk 0:00:02.4]} 30... Rfc8
{[%clk 0:00:01.9]} 31. f5 {[%clk 0:00:02.6]} 31... Rc2 {[%clk 0:00:01.9]} 32.
Bxc2 {[%clk 0:00:03.2]} 32... Rxc2 {[%clk 0:00:02.2]} 33. Ng1 {[%clk 0:00:04.1]}
33... Nd3+ {[%clk 0:00:01.6]} 34. Kf3 {[%clk 0:00:03.4]} 34... exf5 {[%clk
0:00:02.5]} 35. gxf5 {[%clk 0:00:03.6]} 35... gxf5 {[%clk 0:00:03.4]} 36. Qh3
{[%clk 0:00:03.7]} 36... Ne1+ {[%clk 0:00:03.9]} 37. Kf2 {[%clk 0:00:03.5]}
37... Nd3+ {[%clk 0:00:04.5]} 38. Kg3 {[%clk 0:00:03.9]} 38... Ne1 {[%clk
0:00:04.5]} 39. Qxf5 {[%clk 0:00:04.1]} 39... Bxe2 {[%clk 0:00:03.5]} 40. e6
{[%clk 0:00:02.9]} 40... fxe6 {[%clk 0:00:03]} 41. Qxe6+ {[%clk 0:00:03.2]}
41... Kg7 {[%clk 0:00:03.9]} 42. Qf6+ {[%clk 0:00:03.1]} 42... Kg8 {[%clk
0:00:04.1]} 43. Qd8+ {[%clk 0:00:03]} 43... Kg7 {[%clk 0:00:04.2]} 44. Qxd5
{[%clk 0:00:02.1]} 44... Bc4 {[%clk 0:00:03.5]} 45. Qe5+ {[%clk 0:00:02.3]}
45... Kg8 {[%clk 0:00:04.1]} 46. g6 {[%clk 0:00:02.4]} 46... Rg2+ {[%clk
0:00:04.1]} 47. Kh3 {[%clk 0:00:02.7]} 47... Rxg6 {[%clk 0:00:05]} 48. Ne2
{[%clk 0:00:02.3]} 48... Be6+ {[%clk 0:00:04.8]} 49. Kh2 {[%clk 0:00:02.7]}
49... Be7 {[%clk 0:00:04.1]} 50. Qb8+ {[%clk 0:00:02.5]} 50... Kf7 {[%clk
0:00:04.1]} 51. Nf4 {[%clk 0:00:03.3]} 51... Rh6+ {[%clk 0:00:03.2]} 52. Kg1
{[%clk 0:00:03.6]} 52... Bf5 {[%clk 0:00:03.3]} 53. Qxa7 {[%clk 0:00:03.2]}
53... Rh4 {[%clk 0:00:02.9]} 54. Nd5 {[%clk 0:00:03.3]} 54... Rg4+ {[%clk
0:00:03.8]} 55. Kf2 {[%clk 0:00:01.9]} 55... Nd3+ {[%clk 0:00:03.5]} 56. Ke2
{[%clk 0:00:02.5]} 56... Nf4+ {[%clk 0:00:01.5]} 57. Bxf4 {[%clk 0:00:02.2]}
57... Rg2+ {[%clk 0:00:02.4]} 58. Kf3 {[%clk 0:00:02.2]} 58... Be4+ {[%clk
0:00:02.8]} 59. Kxe4 {[%clk 0:00:02.7]} 59... Re2+ {[%clk 0:00:03.7]} 60. Kd3
{[%clk 0:00:03.4]} 60... Kg6 {[%clk 0:00:04.5]} 61. Nxe7+ {[%clk 0:00:03.7]}
61... Kh5 {[%clk 0:00:04.7]} 62. Kxe2 {[%clk 0:00:04.1]} 62... Kg4 {[%clk
0:00:05.6]} 63. Qxb6 {[%clk 0:00:04.7]} 63... Kh3 {[%clk 0:00:06.5]} 64. Qc5
{[%clk 0:00:05.6]} 64... Kg2 {[%clk 0:00:06.5]} 65. Qe5 {[%clk 0:00:06.5]} 65...
Kh1 {[%clk 0:00:07.4]} 66. Qg5 {[%clk 0:00:06.9]} 66... h5 {[%clk 0:00:08.3]}
67. Kf1 {[%clk 0:00:06.8]} 67... h4 {[%clk 0:00:09.2]} 68. Qg3 {[%clk
0:00:07.5]} 68... hxg3 {[%clk 0:00:09]} 69. Be3 {[%clk 0:00:07.7]} 69... g2+
{[%clk 0:00:09.2]} 70. Ke2 {[%clk 0:00:08.1]} 70... g1=Q {[%clk 0:00:09]} 71.
Bxg1 {[%clk 0:00:08.4]} 71... Kxg1 {[%clk 0:00:09.9]} 72. d5 {[%clk 0:00:09.2]}
72... Kg2 {[%clk 0:00:10.8]} 73. d6 {[%clk 0:00:10.1]} 73... Kg3 {[%clk
0:00:11.7]} 74. d7 {[%clk 0:00:11]} 74... Kg4 {[%clk 0:00:12.6]} 75. d8=Q {[%clk
0:00:11.9]} 75... Kg5 {[%clk 0:00:13.2]} 76. Qg8+ {[%clk 0:00:12.2]} 76... Kf6
{[%clk 0:00:14.1]} 77. Qg6+ {[%clk 0:00:12.4]} 77... Ke5 {[%clk 0:00:14.1]} 78.
Ke3 {[%clk 0:00:13.3]} 1/2-1/2

[Event "Late-Titled-Tuesday-Blitz-November-28-2023"]
[Site "Chess.com"]
[Date "2023.11.28"]
[Round "11"]
[White "reevecanada"]
[Black "The_Princess_Moon"]
[Result "1-0"]
[WhiteElo "2615"]
[BlackElo "2391"]
[TimeControl "180+1"]
[EndTime "16:03:25 PST"]
[Termination "reevecanada won by checkmate"]

1. d4 {[%clk 0:03:00.9]} 1... c5 {[%clk 0:03:00.9]} 2. c3 {[%clk 0:02:57]} 2...
cxd4 {[%clk 0:03:01.8]} 3. cxd4 {[%clk 0:02:56.9]} 3... d6 {[%clk 0:03:02.6]} 4.
Nc3 {[%clk 0:02:54.3]} 4... Nf6 {[%clk 0:03:03.1]} 5. e4 {[%clk 0:02:54.1]} 5...
g6 {[%clk 0:03:03.7]} 6. f3 {[%clk 0:02:52.8]} 6... Bg7 {[%clk 0:03:03.4]} 7.
Be3 {[%clk 0:02:53.4]} 7... O-O {[%clk 0:03:03]} 8. Qd2 {[%clk 0:02:54]} 8...
Nc6 {[%clk 0:02:58.6]} 9. O-O-O {[%clk 0:02:54.3]} 9... Qa5 {[%clk 0:02:54.5]}
10. Kb1 {[%clk 0:02:52.6]} 10... a6 {[%clk 0:02:50.6]} 11. g4 {[%clk 0:02:51.6]}
11... b5 {[%clk 0:02:49.7]} 12. h4 {[%clk 0:02:52]} 12... b4 {[%clk 0:02:43]}
13. Nce2 {[%clk 0:02:51.5]} 13... h5 {[%clk 0:02:34]} 14. Ng3 {[%clk 0:02:44]}
14... hxg4 {[%clk 0:02:30.7]} 15. h5 {[%clk 0:02:44.4]} 15... b3 {[%clk
0:02:24.9]} 16. axb3 {[%clk 0:02:36.7]} 16... Qxd2 {[%clk 0:02:22.5]} 17. Bxd2
{[%clk 0:02:37.3]} 17... gxf3 {[%clk 0:02:12.1]} 18. hxg6 {[%clk 0:02:34.3]}
18... Nxd4 {[%clk 0:01:50.8]} 19. Be3 {[%clk 0:02:26.4]} 19... e5 {[%clk
0:01:30.5]} 20. Bxd4 {[%clk 0:02:23.5]} 20... exd4 {[%clk 0:01:30.9]} 21. Nxf3
{[%clk 0:02:22.9]} 21... Bg4 {[%clk 0:01:26.9]} 22. Be2 {[%clk 0:02:10.5]} 22...
fxg6 {[%clk 0:01:21]} 23. Nxd4 {[%clk 0:02:05.3]} 23... Bxe2 {[%clk 0:01:17.1]}
24. Ndxe2 {[%clk 0:02:06.2]} 24... Rfe8 {[%clk 0:01:03.7]} 25. Nf4 {[%clk
0:01:59.5]} 25... Nxe4 {[%clk 0:01:01.6]} 26. Nxe4 {[%clk 0:01:56.2]} 26... Rxe4
{[%clk 0:01:02.5]} 27. Nxg6 {[%clk 0:01:55.3]} 27... Re2 {[%clk 0:00:59.9]} 28.
Rdf1 {[%clk 0:01:28.6]} 28... Rxb2+ {[%clk 0:00:57.2]} 29. Kc1 {[%clk
0:01:28.1]} 29... Rc8+ {[%clk 0:00:56.1]} 30. Kd1 {[%clk 0:01:26.4]} 30... Rb1+
{[%clk 0:00:34.5]} 31. Kd2 {[%clk 0:01:20.9]} 31... Rxf1 {[%clk 0:00:27.7]} 32.
Rxf1 {[%clk 0:01:20.2]} 32... Bh6+ {[%clk 0:00:22.1]} 33. Kd3 {[%clk 0:01:19.3]}
33... Kg7 {[%clk 0:00:22.5]} 34. Ne7 {[%clk 0:01:19.4]} 34... Rb8 {[%clk
0:00:20.7]} 35. Kc4 {[%clk 0:01:17.3]} 35... Bg5 {[%clk 0:00:19.5]} 36. Nf5+
{[%clk 0:01:16.7]} 36... Kg6 {[%clk 0:00:19.4]} 37. Nxd6 {[%clk 0:01:16.8]}
37... a5 {[%clk 0:00:18.5]} 38. Rg1 {[%clk 0:01:14.9]} 38... Rb4+ {[%clk
0:00:15.5]} 39. Kc3 {[%clk 0:01:11.1]} 39... Kh5 {[%clk 0:00:14.7]} 40. Rh1+
{[%clk 0:01:05.8]} 40... Kg4 {[%clk 0:00:13.9]} 41. Nc4 {[%clk 0:01:03.5]} 41...
Bf6+ {[%clk 0:00:13.2]} 42. Kc2 {[%clk 0:01:02.2]} 42... a4 {[%clk 0:00:12.9]}
43. Ne3+ {[%clk 0:00:59]} 43... Kf3 {[%clk 0:00:13]} 44. Nd5 {[%clk 0:00:56.8]}
44... axb3+ {[%clk 0:00:13.2]} 45. Kb1 {[%clk 0:00:56.7]} 45... Ra4 {[%clk
0:00:10.1]} 46. Nxf6 {[%clk 0:00:56.6]} 46... b2 {[%clk 0:00:09.8]} 47. Kxb2
{[%clk 0:00:54.1]} 47... Rb4+ {[%clk 0:00:10.1]} 48. Kc3 {[%clk 0:00:53.9]}
48... Rf4 {[%clk 0:00:10.6]} 49. Nd5 {[%clk 0:00:54]} 49... Rf5 {[%clk
0:00:09.8]} 50. Kd4 {[%clk 0:00:50.2]} 50... Kg2 {[%clk 0:00:08.2]} 51. Re1
{[%clk 0:00:48.8]} 51... Rf2 {[%clk 0:00:07.7]} 52. Re8 {[%clk 0:00:48.9]} 52...
Rd2+ {[%clk 0:00:07.2]} 53. Kc4 {[%clk 0:00:48.2]} 53... Rc2+ {[%clk 0:00:07.2]}
54. Kd3 {[%clk 0:00:48.6]} 54... Ra2 {[%clk 0:00:06.6]} 55. Rg8+ {[%clk
0:00:48.3]} 55... Kf3 {[%clk 0:00:06.3]} 56. Rf8+ {[%clk 0:00:48.4]} 56... Kg2
{[%clk 0:00:06.3]} 57. Nc3 {[%clk 0:00:44.6]} 57... Ra3 {[%clk 0:00:05.7]} 58.
Kd2 {[%clk 0:00:44.8]} 58... Kg3 {[%clk 0:00:05.4]} 59. Ne4+ {[%clk 0:00:44.8]}
59... Kg4 {[%clk 0:00:04.2]} 60. Ke2 {[%clk 0:00:44.8]} 60... Ra2+ {[%clk
0:00:03.9]} 61. Nd2 {[%clk 0:00:44.9]} 61... Ra3 {[%clk 0:00:04.2]} 62. Nc4
{[%clk 0:00:43.3]} 62... Ra2+ {[%clk 0:00:04]} 63. Ke3 {[%clk 0:00:43.9]} 63...
Rc2 {[%clk 0:00:03.1]} 64. Kd3 {[%clk 0:00:43.4]} 64... Ra2 {[%clk 0:00:03.3]}
65. Ke4 {[%clk 0:00:43.6]} 65... Ra4 {[%clk 0:00:03.1]} 66. Kd4 {[%clk
0:00:43.3]} 66... Kh4 {[%clk 0:00:02.8]} 67. Rg8 {[%clk 0:00:42.2]} 67... Kh5
{[%clk 0:00:03.3]} 68. Kd3 {[%clk 0:00:42.4]} 68... Kh6 {[%clk 0:00:03.4]} 69.
Ne3 {[%clk 0:00:40.4]} 69... Kh7 {[%clk 0:00:03.3]} 70. Rg2 {[%clk 0:00:39.8]}
70... Rb4 {[%clk 0:00:03.3]} 71. Nf5 {[%clk 0:00:40]} 71... Ra4 {[%clk
0:00:02.9]} 72. Nd4 {[%clk 0:00:40.2]} 72... Kh6 {[%clk 0:00:02.8]} 73. Ke4
{[%clk 0:00:40.2]} 73... Rb4 {[%clk 0:00:02.4]} 74. Ke5 {[%clk 0:00:40.2]} 74...
Ra4 {[%clk 0:00:02.7]} 75. Nf5+ {[%clk 0:00:39.4]} 75... Kh5 {[%clk 0:00:02.4]}
76. Nd6 {[%clk 0:00:37.6]} 76... Ra5+ {[%clk 0:00:02.4]} 77. Kf4 {[%clk
0:00:36.8]} 77... Kh6 {[%clk 0:00:02]} 78. Nf5+ {[%clk 0:00:36]} 78... Kh7
{[%clk 0:00:02.3]} 79. Rg7+ {[%clk 0:00:35.3]} 79... Kh8 {[%clk 0:00:01.9]} 80.
Rd7 {[%clk 0:00:35.8]} 80... Ra4+ {[%clk 0:00:02.5]} 81. Kg5 {[%clk 0:00:36.2]}
81... Ra5 {[%clk 0:00:02.6]} 82. Kg6 {[%clk 0:00:35.1]} 82... Ra6+ {[%clk
0:00:03.2]} 83. Nd6 {[%clk 0:00:35.2]} 83... Ra8 {[%clk 0:00:02.8]} 84. Rg7
{[%clk 0:00:31.8]} 84... Rd8 {[%clk 0:00:01.8]} 85. Nf7# {[%clk 0:00:31.1]} 1-0

[Event "Late-Titled-Tuesday-Blitz-November-28-2023"]
[Site "Chess.com"]
[Date "2023.11.28"]
[Round "11"]
[White "hristos03"]
[Black "SEBAZZANO"]
[Result "0-1"]
[WhiteElo "2349"]
[BlackElo "2270"]
[TimeControl "180+1"]
[EndTime "16:03:32 PST"]
[Termination "SEBAZZANO won on time"]

1. e4 {[%clk 0:02:58.3]} 1... e6 {[%clk 0:03:00]} 2. d4 {[%clk 0:02:55.6]} 2...
d5 {[%clk 0:03:00.3]} 3. e5 {[%clk 0:02:53]} 3... c5 {[%clk 0:03:00.3]} 4. c3
{[%clk 0:02:51.7]} 4... Nc6 {[%clk 0:03:00.4]} 5. Nf3 {[%clk 0:02:48.5]} 5...
Qb6 {[%clk 0:02:59.9]} 6. Be2 {[%clk 0:02:43.6]} 6... Nh6 {[%clk 0:02:57]} 7.
Na3 {[%clk 0:02:42.2]} 7... cxd4 {[%clk 0:02:50]} 8. cxd4 {[%clk 0:02:39.8]}
8... Nf5 {[%clk 0:02:50]} 9. Nc2 {[%clk 0:02:38]} 9... Bb4+ {[%clk 0:02:48.2]}
10. Kf1 {[%clk 0:02:25.6]} 10... h5 {[%clk 0:02:47.3]} 11. h4 {[%clk 0:02:15.3]}
11... Bd7 {[%clk 0:02:45.3]} 12. g3 {[%clk 0:02:13.7]} 12... Rc8 {[%clk
0:02:38.5]} 13. Kg2 {[%clk 0:02:10.7]} 13... Be7 {[%clk 0:02:36.2]} 14. Bg5
{[%clk 0:01:39.3]} 14... Bxg5 {[%clk 0:02:24.1]} 15. hxg5 {[%clk 0:01:36.9]}
15... g6 {[%clk 0:01:32.9]} 16. Qd2 {[%clk 0:01:15.6]} 16... Na5 {[%clk
0:01:25.9]} 17. b3 {[%clk 0:00:56.7]} 17... Ke7 {[%clk 0:01:17.8]} 18. Bd3
{[%clk 0:00:48.9]} 18... Nc6 {[%clk 0:01:09.7]} 19. Bxf5 {[%clk 0:00:31]} 19...
exf5 {[%clk 0:01:10.6]} 20. Ne3 {[%clk 0:00:20.7]} 20... Be6 {[%clk 0:01:09.6]}
21. Rac1 {[%clk 0:00:16.3]} 21... Qb4 {[%clk 0:00:59.6]} 22. Rxc6 {[%clk
0:00:10.7]} 22... Qxd2 {[%clk 0:00:59.5]} 23. Rxe6+ {[%clk 0:00:11]} 23... fxe6
{[%clk 0:01:00.4]} 24. Nxd2 {[%clk 0:00:11.8]} 24... Rc3 {[%clk 0:00:58.1]} 25.
Kf3 {[%clk 0:00:09.5]} 25... Rhc8 {[%clk 0:00:52.4]} 26. Ke2 {[%clk 0:00:09.1]}
26... b5 {[%clk 0:00:48.2]} 27. Ng2 {[%clk 0:00:05.5]} 27... Rc2 {[%clk
0:00:47.5]} 28. Nf4 {[%clk 0:00:05.9]} 28... Kf7 {[%clk 0:00:43.3]} 29. Kd3
{[%clk 0:00:04.5]} 29... Rxa2 {[%clk 0:00:41.9]} 30. Rd1 {[%clk 0:00:03.3]}
30... Rcc2 {[%clk 0:00:41.1]} 31. Ke3 {[%clk 0:00:03.4]} 31... b4 {[%clk
0:00:40.4]} 32. Nd3 {[%clk 0:00:03.7]} 32... Rc3 {[%clk 0:00:40.7]} 33. Ke2
{[%clk 0:00:03]} 33... a5 {[%clk 0:00:39.9]} 34. Nc5 {[%clk 0:00:03.1]} 34... a4
{[%clk 0:00:38.8]} 35. Nxa4 {[%clk 0:00:02.9]} 35... Rxb3 {[%clk 0:00:38.7]} 36.
Nc5 {[%clk 0:00:02.4]} 36... Rc3 {[%clk 0:00:37.2]} 37. Nb7 {[%clk 0:00:02.7]}
37... b3 {[%clk 0:00:36.7]} 38. Nd6+ {[%clk 0:00:03.4]} 38... Ke7 {[%clk
0:00:36]} 39. Rb1 {[%clk 0:00:03.7]} 39... Rcc2 {[%clk 0:00:35]} 40. Rd1 {[%clk
0:00:02.6]} 40... b2 {[%clk 0:00:34.3]} 41. Nb5 {[%clk 0:00:02.4]} 41... Rc1
{[%clk 0:00:34.3]} 42. Nc3 {[%clk 0:00:01.7]} 42... Rxd1 {[%clk 0:00:31.4]} 43.
Kxd1 {[%clk 0:00:01.4]} 43... Ra1+ {[%clk 0:00:30.4]} 44. Ndb1 {[%clk
0:00:01.6]} 44... h4 {[%clk 0:00:19.6]} 45. gxh4 {[%clk 0:00:01.1]} 45... Ra8
{[%clk 0:00:20]} 46. Kc2 {[%clk 0:00:01.7]} 46... Rh8 {[%clk 0:00:20.5]} 47.
Kxb2 {[%clk 0:00:02.2]} 47... Rxh4 {[%clk 0:00:20]} 48. Nd2 {[%clk 0:00:02.5]}
48... Rf4 {[%clk 0:00:17.4]} 49. Kc2 {[%clk 0:00:02.4]} 49... Rxd4 {[%clk
0:00:16.3]} 50. Kd1 {[%clk 0:00:01.9]} 50... Rf4 {[%clk 0:00:14.8]} 51. Ke2
{[%clk 0:00:02]} 51... Rg4 {[%clk 0:00:14.3]} 52. Nf3 {[%clk 0:00:02.5]} 52...
d4 {[%clk 0:00:14.1]} 53. Nb1 {[%clk 0:00:01.8]} 53... Re4+ {[%clk 0:00:13.7]}
54. Kf1 {[%clk 0:00:01.6]} 54... Kd7 {[%clk 0:00:11.7]} 55. Nbd2 {[%clk
0:00:02.1]} 55... Rf4 {[%clk 0:00:11.4]} 56. Ke2 {[%clk 0:00:02.7]} 56... Kc6
{[%clk 0:00:10.1]} 57. Kd3 {[%clk 0:00:03.2]} 57... Kd5 {[%clk 0:00:09.6]} 58.
Ke2 {[%clk 0:00:03.3]} 58... Kc5 {[%clk 0:00:08.4]} 59. Kd3 {[%clk 0:00:03.6]}
59... Kd5 {[%clk 0:00:07.8]} 60. Ke2 {[%clk 0:00:03.8]} 60... Kc5 {[%clk
0:00:08]} 61. Nf1 {[%clk 0:00:03.1]} 61... Kc4 {[%clk 0:00:06.8]} 62. N1d2+
{[%clk 0:00:03]} 62... Kc3 {[%clk 0:00:06.8]} 63. Nf1 {[%clk 0:00:02.3]} 63...
d3+ {[%clk 0:00:06.8]} 64. Ke3 {[%clk 0:00:02.6]} 64... Ra4 {[%clk 0:00:05.6]}
65. N1d2 {[%clk 0:00:01.9]} 65... Ra2 {[%clk 0:00:05.3]} 66. Nf1 {[%clk
0:00:01.2]} 66... Re2+ {[%clk 0:00:05.3]} 67. Kf4 {[%clk 0:00:01.4]} 67... d2
{[%clk 0:00:04.6]} 0-1